fUSD/lending_fUSD_20250716
["ID","MTS","AMOUNT","RATE_DAILY","PERIOD"]
[372406999,1752633038095,-197.7477,0.0002108,2]
[372407000,1752633038105,-4335.73295486,0.00021097,2]
[372407001,1752633038114,-1401.87656263,0.00021134,2]
[372407002,1752633038124,-476.27654184,0.00021141,4]
[372407003,1752633038133,-4496.15507419,0.00021152,2]
[372407004,1752633038143,-562480.37025832,0.000212,2]
[372407005,1752633038153,-1030.0,0.000212,2]
[372407006,1752633038163,-1030.0,0.000212,3]
[372407007,1752633038171,-197.74771,0.000212,2]
[372407008,1752633038181,-4662.51281194,0.00021207,2]
[372407009,1752633038190,-1401.87656263,0.00021251,2]
[372407010,1752633038199,-4835.02578598,0.00021262,2]
[372407011,1752633038208,-476.27654184,0.00021314,5]
[372407012,1752633038218,-5013.92174006,0.00021317,2]
[372407013,1752633038229,-197.7477,0.0002133,2]
[372407014,1752633038238,-1401.87656263,0.00021368,2]
[372407016,1752633038248,-5199.43684444,0.00021372,2]
[372407017,1752633038257,-168.0,0.00021383,2]
[372407019,1752633038266,-168.0,0.00021403,2]
[372407021,1752633038276,-5391.81600769,0.00021427,2]
[372407023,1752633038285,-152.95,0.00021432,2]
[372407025,1752633038295,-197.74771,0.0002145,2]
[372407027,1752633038304,-152.0,0.00021456,8]
[372407029,1752633038313,-2400.02488808,0.00021482,2]
[372407031,1752633038323,-1401.87656263,0.00021486,2]
[372407067,1752633038650,-476.27654184,0.00021486,5]
[372407068,1752633038660,-995.0,0.000215,2]
[372407071,1752633038670,-10000.0,0.000215,2]
[372407072,1752633038681,-409.697001,0.0002156,8]
[372407075,1752633038692,-197.7477,0.0002158,2]
[372407076,1752633038708,-3000.0,0.00021602,7]
[372407078,1752633038719,-1401.87656263,0.00021603,2]
[372407080,1752633038730,-169.44498778,0.00021624,2]
[372407083,1752633038740,-2099.055,0.00021624,2]
[372407084,1752633038752,-276.05,0.0002164,2]
[372407086,1752633038762,-476.27654184,0.00021659,5]
[372407088,1752633038773,-1000.0,0.000217,9]
[372407090,1752633038783,-1000.0,0.000217,9]
[372407092,1752633038792,-1000.0,0.000217,8]
[372407094,1752633038802,-1000.0,0.000217,8]
[372407096,1752633038811,-1000.0,0.000217,7]
[372407098,1752633038820,-1000.0,0.000217,7]
[372407100,1752633038830,-1000.0,0.000217,7]
[372407102,1752633038839,-1000.0,0.000217,6]
[372407104,1752633038848,-1000.0,0.000217,6]
[372407106,1752633038857,-1000.0,0.000217,6]
[372407108,1752633038867,-1000.0,0.000217,6]
[372407110,1752633038876,-1000.0,0.000217,5]
[372407112,1752633038885,-1000.0,0.000217,5]
[372407114,1752633038895,-1000.0,0.000217,5]
[372407116,1752633038904,-1000.0,0.000217,5]
[372407118,1752633038914,-1000.0,0.000217,5]
[372407120,1752633038924,-746.0,0.000217,5]
[372407122,1752633038933,-1000.0,0.000217,4]
[372407124,1752633038943,-1000.0,0.000217,4]
[372407126,1752633038952,-1000.0,0.000217,4]
[372407128,1752633038962,-1000.0,0.000217,4]
[372407130,1752633038971,-1000.0,0.000217,4]
[372407132,1752633038980,-1000.0,0.000217,4]
[372407134,1752633038990,-1000.0,0.000217,3]
[372407136,1752633038999,-1000.0,0.000217,3]
[372407138,1752633039010,-1000.0,0.000217,3]
[372407140,1752633039019,-1000.0,0.000217,3]
[372407142,1752633039029,-1000.0,0.000217,3]
[372407144,1752633039038,-1000.0,0.000217,3]
[372407146,1752633039048,-1000.0,0.000217,2]
[372407148,1752633039057,-1000.0,0.000217,2]
[372407150,1752633039067,-1000.0,0.000217,3]
[372407152,1752633039076,-1000.0,0.000217,3]
[372407154,1752633039085,-1000.0,0.000217,3]
[372407156,1752633039095,-548.0,0.000217,2]
[372407158,1752633039104,-1000.0,0.000217,2]
[372407160,1752633039114,-1000.0,0.000217,2]
[372407162,1752633039123,-1000.0,0.000217,2]
[372407164,1752633039133,-1017.0,0.000217,2]
[372407166,1752633039142,-378.0,0.000217,2]
[372407168,1752633039152,-773.0,0.000217,2]
[372407170,1752633039161,-239.0,0.000217,2]
[372407172,1752633039171,-838.53403088,0.000217,3]
[372407174,1752633039180,-210.72748344,0.000217,3]
[372407176,1752633039190,-447.87393831,0.000217,3]
[372407179,1752633039200,-152.0,0.00021713,9]
[372407181,1752633039210,-1401.87656263,0.0002172,2]
[372407183,1752633039220,-2007.289,0.00021727,2]
[372407185,1752633039230,-806.0,0.00021727,2]
[372407187,1752633039239,-1267.0,0.00021727,2]
[372407189,1752633039248,-658.354,0.00021727,2]
[372407191,1752633039257,-1692.392,0.00021727,2]
[372407192,1752633039266,-598.304,0.00021727,2]
[372407194,1752633039275,-2146.07,0.00021727,2]
[372407196,1752633039285,-1251.553,0.00021727,2]
[372407198,1752633039294,-21351.0,0.00021727,2]
[372407200,1752633039303,-169.0,0.0002173,2]
[372407202,1752633039312,-169.0,0.0002173,2]
[372407204,1752633039321,-152.0,0.0002173,2]
[372407206,1752633039331,-152.0,0.0002173,2]
[372407208,1752633039340,-1207.0,0.0002173,2]
[372407210,1752633039350,-169.0,0.0002173,2]
[372407212,1752633039359,-152.0,0.0002173,2]
[372407214,1752633039368,-152.0,0.0002173,2]
[372407216,1752633039377,-1207.0,0.0002173,2]
[372407218,1752633039389,-169.0,0.0002173,2]
[372407220,1752633039399,-152.0,0.0002173,2]
[372407223,1752633039409,-152.0,0.0002173,2]
[372407225,1752633039419,-1244.34221308,0.0002173,2]
[372407227,1752633039428,-169.0,0.0002173,2]
[372407228,1752633039439,-152.0,0.0002173,2]
[372407230,1752633039448,-152.0,0.0002173,2]
[372407232,1752633039457,-152.0,0.0002173,2]
[372407234,1752633039467,-173.99877586,0.0002173,2]
[372407236,1752633039476,-152.0,0.0002173,2]
[372407238,1752633039486,-152.0,0.0002173,2]
[372407240,1752633039495,-152.0,0.0002173,2]
[372407242,1752633039505,-292.48531628,0.0002173,2]
[372407244,1752633039514,-299.70429272,0.0002173,2]
[372407246,1752633039523,-150.0,0.00021737,2]
[372407248,1752633039533,-150.0,0.0002176,2]
[372407250,1752633039542,-150.0,0.00021773,2]
[372407252,1752633039551,-150.0,0.00021776,2]
[372407254,1752633039561,-150.0,0.00021792,2]
[372407256,1752633039571,-674.0,0.00021799,2]
[372407258,1752633039580,-150.0,0.00021799,2]
[372407260,1752633039590,-500.0,0.00021799,2]
[372407262,1752633039599,-500.0,0.00021799,2]
[372407264,1752633039608,-677.0,0.00021799,2]
[372407266,1752633039618,-150.0,0.00021799,2]
[372407268,1752633039627,-249.82139547,0.00021799,2]
[372407270,1752633039636,-500.0,0.00021799,2]
[372407272,1752633039645,-150.26069429,0.00021799,2]
[372407274,1752633039654,-500.0,0.00021799,2]
[372407276,1752633039663,-439.0,0.00021799,2]
[372407278,1752633039672,-150.0,0.00021799,2]
[372407280,1752633039682,-150.0,0.00021799,2]
[372407282,1752633039692,-500.0,0.00021799,2]
[372407284,1752633039701,-500.0,0.00021799,2]
[372407286,1752633039711,-150.0,0.00021799,2]
[372407288,1752633039720,-423.0,0.00021799,2]
[372407290,1752633039729,-500.0,0.00021799,2]
[372407292,1752633039738,-150.0,0.00021799,2]
[372407294,1752633039747,-500.0,0.00021799,2]
[372407296,1752633039757,-150.0,0.00021799,2]
[372407298,1752633039766,-493.0,0.00021799,2]
[372407300,1752633039776,-150.0,0.00021799,2]
[372407302,1752633039785,-500.0,0.00021799,2]
[372407304,1752633039795,-150.0,0.00021799,2]
[372407306,1752633039804,-150.0,0.00021799,2]
[372407308,1752633039814,-150.0,0.00021799,2]
[372407310,1752633039824,-500.0,0.00021799,2]
[372407312,1752633039834,-150.0,0.00021799,2]
[372407314,1752633039844,-2178.0,0.00021799,2]
[372407316,1752633039854,-2178.0,0.00021799,2]
[372407318,1752633039863,-500.0,0.00021799,2]
[372407320,1752633039874,-5578.0,0.00021799,2]
[372407322,1752633039886,-150.0,0.00021799,2]
[372407324,1752633039895,-455.0,0.00021799,2]
[372407326,1752633039906,-2389.0,0.00021799,2]
[372407328,1752633039916,-500.0,0.00021799,2]
[372407330,1752633039925,-1030.0,0.000218,4]
[372407332,1752633039935,-1000.58,0.000218,5]
[372407334,1752633039944,-970.0,0.000218,6]
[372407336,1752633039954,-477.0761,0.00021816,2]
[372407338,1752633039963,-5000.0,0.00021817,2]
[372407340,1752633039981,-216.12716009,0.00021817,2]
[372407342,1752633039991,-150.0,0.00021826,2]
[372407344,1752633040001,-476.27654184,0.00021831,6]
[372407346,1752633040011,-1401.87656263,0.00021837,2]
[372407348,1752633040020,-150.0,0.0002187,2]
[372407350,1752633040030,-150.0,0.00021875,2]
[372407352,1752633040039,-475.0,0.00021879,2]
[372407354,1752633040048,-961.943328,0.00021887,15]
[372407356,1752633040058,-838.53403088,0.00021894,2]
[372407358,1752633040067,-210.72748344,0.00021894,2]
[372407360,1752633040078,-447.87393831,0.00021894,2]
[372407361,1752633040087,-160.0,0.00021896,2]
[372407363,1752633040097,-1622.35,0.000219,2]
[372407366,1752633040107,-516.0,0.00021905,5]
[372407368,1752633040116,-6034.3513167,0.00021906,2]
[372407369,1752633040126,-120883.9393865,0.00021906,2]
[372407372,1752633040135,-806.44845165,0.00021907,2]
[372407374,1752633040145,-1715.79826357,0.00021908,2]
[372407376,1752633040154,-150.0,0.00021909,2]
[372407378,1752633040164,-709.09,0.00021915,2]
[372407380,1752633040174,-709.09,0.00021915,2]
[372407382,1752633040184,-709.09,0.00021915,2]
[372407384,1752633040193,-709.09,0.00021915,2]
[372407386,1752633040202,-709.09,0.00021915,2]
[372407388,1752633040212,-709.09,0.00021915,2]
[372407390,1752633040221,-709.09,0.00021915,2]
[372407392,1752633040231,-709.09,0.00021915,2]
[372407394,1752633040240,-709.09,0.00021915,2]
[372407396,1752633040251,-709.09,0.00021915,2]
[372407398,1752633040260,-709.09,0.00021915,2]
[372407400,1752633040269,-709.09,0.00021915,2]
[372407402,1752633040279,-709.09,0.00021915,2]
[372407404,1752633040288,-709.09,0.00021915,2]
[372407406,1752633040297,-709.09,0.00021915,2]
[372407408,1752633040306,-709.09,0.00021915,2]
[372407410,1752633040315,-709.09,0.00021915,2]
[372407412,1752633040325,-709.09,0.00021915,2]
[372407414,1752633040334,-709.09,0.00021915,2]
[372407416,1752633040343,-709.09,0.00021915,2]
[372407418,1752633040352,-709.09,0.00021915,2]
[372407420,1752633040362,-709.09,0.00021915,2]
[372407422,1752633040371,-709.09,0.00021915,2]
[372407424,1752633040380,-709.10026274,0.00021915,2]
[372407426,1752633040392,-155.242,0.00021916,2]
[372407428,1752633040401,-9705.4,0.00021916,2]
[372407430,1752633040411,-150.0,0.00021916,2]
[372407432,1752633040420,-670.46359836,0.00021916,2]
[372407434,1752633040438,-300.0,0.00021916,2]
[372407436,1752633040448,-300.0,0.00021916,2]
[372407438,1752633040457,-178.45905574,0.00021917,2]
[372407440,1752633040468,-332.31779792,0.00021917,2]
[372407442,1752633040478,-151.0,0.00021917,2]
[372407444,1752633040489,-285.24,0.00021917,2]
[372407446,1752633040499,-151.0,0.00021917,2]
[372407448,1752633040508,-151.0,0.00021917,2]
[372407450,1752633040517,-151.0,0.00021917,2]
[372407451,1752633040527,-151.0,0.00021917,2]
[372407454,1752633040536,-153.776333,0.00021917,2]
[372407456,1752633040546,-500.0,0.00021917,2]
[372407457,1752633040557,-218.296969,0.00021917,2]
[372407459,1752633040567,-218.296969,0.00021917,2]
[372407461,1752633040576,-218.296969,0.00021917,2]
[372407463,1752633040586,-218.296969,0.00021917,2]
[372407465,1752633040595,-218.296969,0.00021917,2]
[372407467,1752633040604,-151.0,0.00021917,2]
[372407469,1752633040613,-277.28939,0.00021917,2]
[372407471,1752633040622,-218.296969,0.00021917,2]
[372407472,1752633040631,-218.296969,0.00021917,2]
[372407474,1752633040640,-218.296969,0.00021917,2]
[372407475,1752633040649,-218.296969,0.00021917,2]
[372407476,1752633040658,-218.296969,0.00021917,2]
[372407477,1752633040667,-152.504138,0.00021917,2]
[372407478,1752633040676,-151.0,0.00021917,2]
[372407479,1752633040685,-151.0,0.00021917,2]
[372407480,1752633040694,-151.0,0.00021917,2]
[372407481,1752633040703,-151.0,0.00021917,2]
[372407482,1752633040712,-151.0,0.00021917,2]
[372407483,1752633040721,-1539.29,0.00021917,2]
[372407484,1752633040732,-151.0,0.00021917,2]
[372407486,1752633040741,-152.847074,0.00021917,2]
[372407488,1752633040750,-151.0,0.00021917,2]
[372407490,1752633040760,-151.0,0.00021917,2]
[372407492,1752633040769,-151.0,0.00021917,2]
[372407494,1752633040778,-151.0,0.00021917,2]
[372407496,1752633040787,-239.679879,0.00021917,2]
[372407498,1752633040797,-177.001933,0.00021917,2]
[372407500,1752633040807,-177.001933,0.00021917,2]
[372407502,1752633040816,-177.001933,0.00021917,2]
[372407504,1752633040825,-177.001933,0.00021917,2]
[372407505,1752633040835,-177.001933,0.00021917,2]
[372407507,1752633040844,-177.001933,0.00021917,2]
[372407509,1752633040854,-177.001933,0.00021917,2]
[372407511,1752633040863,-177.001933,0.00021917,2]
[372407513,1752633040872,-177.001933,0.00021917,2]
[372407515,1752633040882,-177.001933,0.00021917,2]
[372407517,1752633040891,-153.603332,0.00021917,2]
[372407519,1752633040900,-491.95,0.00021917,2]
[372407521,1752633040910,-572.12164358,0.00021917,2]
[372407523,1752633040920,-460.0,0.00021917,2]
[372407525,1752633040931,-460.0,0.00021917,2]
[372407527,1752633040940,-460.0,0.00021917,2]
[372407529,1752633040951,-566.66,0.00021917,2]
[372407531,1752633040961,-460.0,0.00021917,2]
[372407533,1752633040971,-460.0,0.00021917,2]
[372407535,1752633040981,-152.443715,0.00021917,2]
[372407537,1752633040991,-460.0,0.00021917,2]
[372407539,1752633041001,-151.0,0.00021917,2]
[372407541,1752633041010,-151.0,0.00021917,2]
[372407543,1752633041019,-151.0,0.00021917,2]
[372407545,1752633041029,-151.0,0.00021917,2]
[372407547,1752633041038,-151.0,0.00021917,2]
[372407549,1752633041048,-460.0,0.00021917,2]
[372407551,1752633041058,-460.0,0.00021917,2]
[372407553,1752633041068,-460.0,0.00021917,2]
[372407555,1752633041077,-1021.63,0.00021917,2]
[372407557,1752633041087,-808.79,0.00021917,2]
[372407559,1752633041096,-151.0,0.00021917,2]
[372407561,1752633041105,-151.0,0.00021917,2]
[372407563,1752633041115,-151.0,0.00021917,2]
[372407565,1752633041124,-151.0,0.00021917,2]
[372407566,1752633041133,-151.0,0.00021917,2]
[372407567,1752633041143,-151.0,0.00021917,2]
[372407568,1752633041153,-571.03,0.00021917,2]
[372407569,1752633041162,-460.0,0.00021917,2]
[372407570,1752633041171,-460.0,0.00021917,2]
[372407571,1752633041181,-218.003179,0.00021917,2]
[372407573,1752633041190,-460.0,0.00021917,2]
[372407575,1752633041199,-465.29027243,0.00021917,2]
[372407577,1752633041208,-512.5302438,0.00021917,2]
[372407579,1752633041217,-512.5302438,0.00021917,2]
[372407581,1752633041226,-151.992021,0.00021917,2]
[372407582,1752633041236,-460.0,0.00021917,2]
[372407584,1752633041245,-151.0,0.00021917,2]
[372407586,1752633041254,-151.0,0.00021917,2]
[372407588,1752633041263,-151.0,0.00021917,2]
[372407590,1752633041272,-151.0,0.00021917,2]
[372407592,1752633041282,-151.0,0.00021917,2]
[372407594,1752633041291,-151.0,0.00021917,2]
[372407596,1752633041300,-460.0,0.00021917,2]
[372407598,1752633041310,-151.0,0.00021917,2]
[372407600,1752633041319,-151.0,0.00021917,2]
[372407602,1752633041328,-151.0,0.00021917,2]
[372407604,1752633041338,-151.0,0.00021917,2]
[372407606,1752633041347,-151.0,0.00021917,2]
[372407608,1752633041357,-151.0,0.00021917,2]
[372407610,1752633041367,-151.0,0.00021917,2]
[372407612,1752633041376,-151.0,0.00021917,2]
[372407614,1752633041388,-263.112593,0.00021917,2]
[372407616,1752633041397,-204.926727,0.00021917,2]
[372407618,1752633041407,-460.0,0.00021917,2]
[372407620,1752633041416,-151.0,0.00021917,2]
[372407622,1752633041427,-151.0,0.00021917,2]
[372407624,1752633041436,-151.0,0.00021917,2]
[372407626,1752633041445,-152.334035,0.00021917,2]
[372407628,1752633041454,-151.0,0.00021917,2]
[372407630,1752633041464,-151.0,0.00021917,2]
[372407632,1752633041474,-151.0,0.00021917,2]
[372407634,1752633041486,-151.0,0.00021917,2]
[372407636,1752633041495,-151.0,0.00021917,2]
[372407638,1752633041504,-154.641218,0.00021917,2]
[372407640,1752633041514,-151.0,0.00021917,2]
[372407642,1752633041523,-460.0,0.00021917,2]
[372407644,1752633041533,-151.0,0.00021917,2]
[372407646,1752633041542,-151.0,0.00021917,2]
[372407648,1752633041552,-151.0,0.00021917,2]
[372407650,1752633041561,-151.0,0.00021917,2]
[372407652,1752633041571,-151.0,0.00021917,2]
[372407654,1752633041581,-151.0,0.00021917,2]
[372407656,1752633041591,-460.0,0.00021917,2]
[372407658,1752633041600,-151.0,0.00021917,2]
[372407660,1752633041610,-157.930547,0.00021917,2]
[372407662,1752633041619,-460.0,0.00021917,2]
[372407664,1752633041629,-460.0,0.00021917,2]
[372407666,1752633041638,-460.0,0.00021917,2]
[372407668,1752633041647,-460.0,0.00021917,2]
[372407670,1752633041656,-151.0,0.00021917,2]
[372407672,1752633041666,-151.0,0.00021917,2]
[372407674,1752633041676,-151.0,0.00021917,2]
[372407676,1752633041685,-460.0,0.00021917,2]
[372407678,1752633041695,-461.85660588,0.00021917,2]
[372407680,1752633041705,-460.0,0.00021917,2]
[372407682,1752633041715,-1000.0,0.00021917,2]
[372407685,1752633041726,-460.0,0.00021917,2]
[372407687,1752633041739,-460.0,0.00021917,2]
[372407689,1752633041749,-460.0,0.00021917,2]
[372407691,1752633041758,-151.0,0.00021917,2]
[372407692,1752633041767,-151.0,0.00021917,2]
[372407694,1752633041776,-294.074278,0.00021917,2]
[372407696,1752633041785,-544.63692221,0.00021917,2]
[372407698,1752633041794,-491.19,0.00021917,2]
[372407700,1752633041803,-460.0,0.00021917,2]
[372407702,1752633041813,-460.0,0.00021917,2]
[372407704,1752633041823,-628.0,0.00021917,2]
[372407706,1752633041832,-1164.85,0.00021917,2]
[372407708,1752633041842,-156.044223,0.00021917,2]
[372407711,1752633041852,-151.0,0.00021917,2]
[372407712,1752633041861,-151.0,0.00021917,2]
[372407714,1752633041870,-151.0,0.00021917,2]
[372407716,1752633041880,-151.0,0.00021917,2]
[372407718,1752633041889,-151.0,0.00021917,2]
[372407720,1752633041900,-151.0,0.00021917,2]
[372407722,1752633041909,-151.0,0.00021917,2]
[372407723,1752633041920,-848.41,0.00021917,2]
[372407724,1752633041929,-179.950999,0.00021917,2]
[372407725,1752633041939,-179.950999,0.00021917,2]
[372407726,1752633041949,-179.950999,0.00021917,2]
[372407727,1752633041958,-179.950999,0.00021917,2]
[372407728,1752633041968,-179.950999,0.00021917,2]
[372407729,1752633041977,-179.950999,0.00021917,2]
[372407730,1752633041990,-179.950999,0.00021917,2]
[372407731,1752633041999,-179.950999,0.00021917,2]
[372407732,1752633042010,-179.950999,0.00021917,2]
[372407733,1752633042019,-179.950999,0.00021917,2]
[372407734,1752633042030,-179.950999,0.00021917,2]
[372407735,1752633042040,-179.950999,0.00021917,2]
[372407736,1752633042049,-179.950999,0.00021917,2]
[372407737,1752633042059,-179.950999,0.00021917,2]
[372407738,1752633042068,-151.0,0.00021917,2]
[372407739,1752633042078,-151.0,0.00021917,2]
[372407740,1752633042088,-151.0,0.00021917,2]
[372407741,1752633042097,-151.0,0.00021917,2]
[372407742,1752633042107,-151.0,0.00021917,2]
[372407743,1752633042116,-151.0,0.00021917,2]
[372407744,1752633042125,-151.0,0.00021917,2]
[372407745,1752633042135,-151.0,0.00021917,2]
[372407746,1752633042144,-151.0,0.00021917,2]
[372407747,1752633042154,-151.0,0.00021917,2]
[372407748,1752633042164,-151.0,0.00021917,2]
[372407749,1752633042173,-151.0,0.00021917,2]
[372407750,1752633042183,-460.0,0.00021917,2]
[372407751,1752633042192,-151.0,0.00021917,2]
[372407752,1752633042202,-151.0,0.00021917,2]
[372407753,1752633042212,-460.0,0.00021917,2]
[372407754,1752633042221,-355.17137964,0.00021917,2]
[372407755,1752633042235,-460.0,0.00021917,2]
[372407756,1752633042245,-460.0,0.00021917,2]
[372407757,1752633042255,-392.96775433,0.00021917,2]
[372407758,1752633042264,-460.0,0.00021917,2]
[372407759,1752633042274,-460.77137677,0.00021917,2]
[372407760,1752633042284,-460.0,0.00021917,2]
[372407761,1752633042293,-151.0,0.00021917,2]
[372407762,1752633042302,-151.0,0.00021917,2]
[372407763,1752633042311,-464.31883693,0.00021917,2]
[372407764,1752633042321,-462.90354761,0.00021917,2]
[372407765,1752633042331,-151.0,0.00021917,2]
[372407766,1752633042340,-151.0,0.00021917,2]
[372407767,1752633042350,-151.0,0.00021917,2]
[372407768,1752633042360,-151.0,0.00021917,2]
[372407769,1752633042370,-151.0,0.00021917,2]
[372407770,1752633042379,-460.0,0.00021917,2]
[372407771,1752633042390,-573.17072912,0.00021917,2]
[372407772,1752633042402,-151.0,0.00021917,2]
[372407773,1752633042411,-460.0,0.00021917,2]
[372407774,1752633042421,-155.829971,0.00021917,2]
[372407775,1752633042430,-154.879661,0.00021917,2]
[372407776,1752633042442,-461.47069613,0.00021917,2]
[372407777,1752633042451,-460.0,0.00021917,2]
[372407778,1752633042461,-920.75,0.00021917,2]
[372407779,1752633042471,-502.66379358,0.00021917,2]
[372407780,1752633042484,-460.96638621,0.00021917,2]
[372407781,1752633042493,-170.0,0.00021917,2]
[372407782,1752633042503,-607.76107713,0.00021917,2]
[372407783,1752633042512,-461.23154058,0.00021917,2]
[372407784,1752633042522,-460.0,0.00021917,2]
[372407785,1752633042532,-460.0,0.00021917,2]
[372407786,1752633042541,-151.0,0.00021917,2]
[372407787,1752633042550,-151.0,0.00021917,2]
[372407788,1752633042559,-151.0,0.00021917,2]
[372407789,1752633042569,-460.0,0.00021917,2]
[372407790,1752633042580,-151.0,0.00021917,2]
[372407791,1752633042590,-151.0,0.00021917,2]
[372407792,1752633042602,-151.0,0.00021917,2]
[372407793,1752633042613,-583.85,0.00021917,2]
[372407794,1752633042623,-151.0,0.00021917,2]
[372407795,1752633042633,-192.186733,0.00021917,2]
[372407796,1752633042644,-151.0,0.00021917,2]
[372407797,1752633042655,-460.0,0.00021917,2]
[372407798,1752633042667,-502.47966585,0.00021917,2]
[372407799,1752633042677,-577.76,0.00021917,2]
[372407800,1752633042687,-460.0,0.00021917,2]
[372407801,1752633042698,-460.0,0.00021917,2]
[372407802,1752633042708,-460.0,0.00021917,2]
[372407803,1752633042718,-167.050915,0.00021917,2]
[372407804,1752633042728,-460.0,0.00021917,2]
[372407805,1752633042743,-460.0,0.00021917,2]
[372407825,1752633043032,-151.0,0.00021917,2]
[372407827,1752633043042,-267.548916,0.00021917,2]
[372407829,1752633043053,-260.399857,0.00021917,2]
[372407831,1752633043063,-460.0,0.00021917,2]
[372407833,1752633043072,-492.07088335,0.00021917,2]
[372407835,1752633043082,-460.0,0.00021917,2]
[372407837,1752633043092,-460.0,0.00021917,2]
[372407839,1752633043101,-151.0,0.00021917,2]
[372407841,1752633043111,-151.0,0.00021917,2]
[372407843,1752633043121,-151.0,0.00021917,2]
[372407845,1752633043131,-151.0,0.00021917,2]
[372407846,1752633043140,-245.789734,0.00021917,2]
[372407847,1752633043150,-351.80734131,0.00021917,2]
[372407848,1752633043159,-151.0,0.00021917,2]
[372407849,1752633043169,-151.0,0.00021917,2]
[372407850,1752633043179,-153.128245,0.00021917,2]
[372407851,1752633043189,-153.582128,0.00021917,2]
[372407852,1752633043199,-287.58160527,0.00021917,2]
[372407853,1752633043209,-460.0,0.00021917,2]
[372407854,1752633043220,-459.60681306,0.00021917,2]
[372407855,1752633043229,-460.0,0.00021917,2]
[372407856,1752633043241,-460.0,0.00021917,2]
[372407857,1752633043251,-562.6,0.00021917,2]
[372407858,1752633043260,-460.0,0.00021917,2]
[372407859,1752633043270,-153.176439,0.00021917,2]
[372407860,1752633043280,-460.0,0.00021917,2]
[372407861,1752633043291,-460.0,0.00021917,2]
[372407862,1752633043302,-460.0,0.00021917,2]
[372407863,1752633043312,-460.0,0.00021917,2]
[372407864,1752633043322,-461.84973853,0.00021917,2]
[372407865,1752633043332,-543.5,0.00021917,2]
[372407866,1752633043342,-460.7156946,0.00021917,2]
[372407867,1752633043351,-151.0,0.00021917,2]
[372407868,1752633043360,-151.0,0.00021917,2]
[372407869,1752633043370,-151.0,0.00021917,2]
[372407870,1752633043380,-151.0,0.00021917,2]
[372407871,1752633043393,-285.801008,0.00021917,2]
[372407872,1752633043404,-490.0,0.00021917,2]
[372407873,1752633043414,-151.0,0.00021917,2]
[372407874,1752633043424,-460.0,0.00021917,2]
[372407875,1752633043433,-151.0,0.00021917,2]
[372407876,1752633043443,-151.0,0.00021917,2]
[372407877,1752633043453,-151.0,0.00021917,2]
[372407879,1752633043463,-151.0,0.00021917,2]
[372407880,1752633043473,-151.0,0.00021917,2]
[372407881,1752633043490,-460.0,0.00021917,2]
[372407882,1752633043500,-462.09852347,0.00021917,2]
[372407884,1752633043510,-294.191834,0.00021917,2]
[372407885,1752633043520,-460.0,0.00021917,2]
[372407886,1752633043529,-1687.098977,0.00021917,2]
[372407887,1752633043540,-162.144144,0.00021917,2]
[372407888,1752633043550,-158.098854,0.00021917,2]
[372407889,1752633043559,-179.65838813,0.00021917,2]